[Event "3rd VIZAG GM-Open 2022"]
[Site "Visakapatnam"]
[Date "2022.06.15"]
[Round "8.9"]
[White "Hossain, Enamul"]
[Black "Kaustuv, Kundu"]
[Result "0-1"]
[ECO "B38"]
[WhiteElo "2413"]
[BlackElo "2327"]
[Annotator "TA"]
[PlyCount "56"]
[EventDate "2022.06.13"]
[EventType "swiss"]
[EventCountry "IND"]
[SourceTitle "playchess.com"]
[Source "ChessBase"]
[SourceQuality "1"]
[TimeControl "5400+30"]

{[%evp 11,56,40,57,27,24,8,5,16,27,25,22,42,27,0,0,0,0,0,16,-50,-65,-79,-46,-68,-66,-83,-74,-77,-75,-78,-79,-115,-104,-170,-172,-227,-241,-254,-206,-183,-203,-438,-438,-430,-424,-622,-635]} 1. e4 {[%emt 0:01:57]} c5 {[%emt 0:00:09]} 2. Nf3 {[%emt 0:00:10]} Nc6 {[%emt 0:00:07]} 3. d4 {[%emt 0:00:55]} cxd4 {[%emt 0:00:05]} 4. Nxd4 {[%emt 0:00:03]} g6 {[%emt 0:00:08]} 5. c4 {[%emt 0:00:11]} Bg7 {[%emt 0:00:09]} 6. Be3 {[%emt 0:00:03]} Qb6 $1 {[%emt 0:00:07][%cal Rc6d4][%mdl 4] is more profitable than 6...Nf6 at the moment.} 7. Nb5 {[%emt 0:02:31] B38: Sicilian: Maroczy Bind with 5...Bg7 and 7...0-0.} (7. Nb3 $5 {[%cal Re3b6]} Qc7 8. Qd2 $14 (8. Nc3 Bxc3+ 9. bxc3 Nf6 $11)) 7... Qa5+ {[%emt 0:00:08]} 8. N5c3 {[%emt 0:00:59]} d6 {[%emt 0:01:20]} 9. Be2 {[%emt 0:00:08] The position is equal.} Qb4 {[%emt 0:03:02]} 10. Qd2 {[%emt 0:02:14]} Nf6 {[%emt 0:00:11][%cal Of6e4] Threatens to win with ...Nxe4!} 11. f3 {[%emt 0:00:53]} Be6 {[%emt 0:02:19] [#]} 12. O-O $146 {[%emt 0:03:32]} ({Predecessor:} 12. Na3 Nd7 13. Nab5 O-O 14. Nc7 Rac8 15. Nxe6 fxe6 16. Rc1 Nce5 17. b3 Nc5 18. O-O {0-1 (52) Haba,P (2380)-Alansacount (2513) Playchess.com INT 2006}) 12... Nd7 $1 {[%emt 0:04:02]} (12... Bxc4 $2 13. a3 Qa5 14. Bxc4 $18) 13. Rc1 {[%emt 0:31:43]} O-O {[%emt 0:05:29]} (13... Bxc4 $2 14. a3 Qa5 15. Bxc4 $18) 14. Na3 {[%emt 0:03:00]} Nb6 {[%emt 0:05:52]} 15. Nd1 {[%emt 0:06:39]} ({Better is} 15. Rc2 $11) 15... Qxd2 $15 {[%emt 0:02:01]} 16. Bxd2 {[%emt 0:00:02]} Rac8 {[%emt 0:02:30]} 17. Rab1 {[%emt 0:05:23]} f5 {[%emt 0:01:40]} 18. Nc3 {[%emt 0:00:37]} Nd4 {[%emt 0:02:13]} 19. b3 {[%emt 0:00:03]} fxe4 {[%emt 0:05:07]} 20. fxe4 {[%emt 0:00:02]} Nd7 {[%emt 0:00:38][%cal Bb6d7,Bd7e5,Be5g4][%mdl 32]} 21. Bf1 {[%emt 0:00:40]} Ne5 {[%emt 0:02:42] 0x0.001762f8464cdp-1022s more active pieces.} 22. Kh1 {[%emt 0:01:52] [#]} (22. Be2 $17) 22... Ng4 $1 $19 {[%emt 0:02:14]} 23. Nd5 {[%emt 0:08:58]} (23. Re1 $142) 23... Rf7 {[%emt 0:13:44]} 24. Re1 {[%emt 0:05:16]} Be5 {[%emt 0:10:20] Against Nf4} 25. Bc3 {[%emt 0:01:23]} Rcf8 $40 {[%emt 0:03:21][%mdl 128] Black is out for blood.} 26. Nb5 $2 {[%emt 0:03:14]} (26. Bxd4 Bxd4 27. h3 Nf2+ 28. Kh2) 26... Nxb5 {[%emt 0:01:04] Black is clearly winning.} (26... Nf2+ 27. Kg1 Nxb5 28. Bxe5 Bxd5 29. exd5 $17) 27. Bxe5 {[%emt 0:02:04]} Bxd5 {[%emt 0:01:36]} ({Inferior is} 27... Nxe5 28. cxb5 Bxd5 29. exd5 $15) 28. exd5 {[%emt 0:02:04] [#]} (28. cxb5 $142 Bxe4 29. Bc4 Bxb1 30. Bd4) 28... Na3 $1 {[%emt 0:00:23] Weighted Error Value: White=0.38/Black=0.04 (flawless)} ({And not} 28... dxe5 29. cxb5 e4 30. Kg1 $11) 0-1

[Event "3rd VIZAG GM-Open 2022"]
[Site "Visakapatnam"]
[Date "2022.06.15"]
[Round "8.10"]
[White "Jubin Jimmy"]
[Black "Nitin, S.."]
[Result "1/2-1/2"]
[ECO "A64"]
[WhiteElo "2259"]
[BlackElo "2399"]
[Annotator "TA"]
[PlyCount "86"]
[EventDate "2022.06.13"]
[EventType "swiss"]
[EventCountry "IND"]
[SourceTitle "playchess.com"]
[Source "ChessBase"]
[SourceQuality "1"]
[TimeControl "5400+30"]

{[%evp 29,86,0,0,-14,-14,-6,0,-22,-16,-18,12,-23,0,-61,-62,-116,-101,-160,-152,-275,-273,-263,-222,-209,-208,-218,-162,-173,-148,-195,-191,-165,-146,-140,-147,-131,-50,-104,-116,-104,-95,-103,-117,-111,-148,-133,-112,-590,-572,-535,-223,-442,0,0,0,0,15,12,32]} 1. d4 {[%emt 0:01:00]} g6 {[%emt 0:00:34]} 2. c4 {[%emt 0:00:15]} Bg7 {[%emt 0:00:22]} 3. Nf3 {[%emt 0:00:19]} c5 {[%emt 0:00:30]} 4. d5 {[%emt 0:01:29]} d6 {[%emt 0:00:10]} 5. g3 {[%emt 0:00:30]} e6 {[%emt 0:01:09]} 6. Nc3 {[%emt 0:00:55]} Nf6 {[%emt 0:00:27]} 7. Bg2 {[%emt 0:01:08]} exd5 {[%emt 0:00:22]} 8. cxd5 {[%emt 0:00:30]} O-O {[%emt 0:00:12]} 9. O-O {[%emt 0:00:21]} Re8 {[%emt 0:00:09]} 10. Nd2 {[%emt 0:00:15]} a6 {[%emt 0:00:09]} 11. a4 {[%emt 0:00:17]} Nbd7 {[%emt 0:00:09]} 12. h3 {[%emt 0:01:41]} Rb8 {[%emt 0:03:44]} 13. Nc4 {[%emt 0:03:22]} Ne5 {[%emt 0:00:39]} 14. Na3 {[%emt 0:00:05]} Nh5 {[%emt 0:07:01]} 15. e4 {[%emt 0:06:28]} Bd7 {[%emt 0:19:32]} 16. a5 {[%emt 0:16:03] A64: Modern Benoni: Fianchetto Variation: 9...Nbd7 10 Nd2 a6 11 a4 Re8.} Qxa5 {[%emt 0:15:53] White must now prevent ...c4.} 17. g4 $1 {[%emt 0:00:27]} Nf6 {[%emt 0:03:58] next ...c4 is good for Black.} 18. f4 {[%emt 0:00:57] [#]} Nexg4 {[%emt 0:03:39]} 19. hxg4 {[%emt 0:00:05]} Nxg4 {[%emt 0:00:23]} 20. Bf3 {[%emt 0:03:27] Strongly threatening Nc2.} ({Much weaker is} 20. Nc2 Qd8 21. Qe1 f5 $17) 20... h5 {[%emt 0:02:47] ...b5 is the strong threat.} 21. Nc2 {[%emt 0:14:36]} (21. f5 $1 $11) 21... Qd8 $15 {[%emt 0:00:42] Threatens to win with ...Qh4.} 22. Bxg4 {[%emt 0:03:39]} ({Better is} 22. Qe1 $15) 22... Bxg4 {[%emt 0:00:52][%cal Bd7g4,Bg4f3,Bf3e4][%mdl 32] [#]} 23. Qd2 $146 {[%emt 0:02:49]} (23. Qd3 $142) ({Predecessor:} 23. Qd3 f5 24. Re1 Qh4 25. Kg2 fxe4 26. Nxe4 Bf5 27. Qf3 Qxe1 {0-1 (27) Dogan,A (2130)-Kanmazalp,O (2404) Konya 2011}) 23... b5 $1 $17 {[%emt 0:03:20][%cal Bb7b5,Bb5b4,Bb4b3][%mdl 1056] And now ...b4 would win. Black has strong compensation.} 24. Re1 {[%emt 0:05:04]} (24. Qg2 $17) 24... b4 $19 {[%emt 0:02:56]} 25. Nd1 {[%emt 0:01:02]} b3 {[%emt 0:01:23]} 26. Nce3 {[%emt 0:02:34]} Bf3 {[%emt 0:00:22] Against Qg2} ({Worse is} 26... Rxe4 27. Nxg4 Rxe1+ 28. Qxe1) 27. Qf2 {[%emt 0:03:29] Prevents Qh4.} Bxe4 {[%emt 0:01:45]} 28. Bd2 {[%emt 0:00:03]} Bd4 {[%emt 0:06:35]} 29. Bc3 {[%emt 0:01:23]} (29. Nc3 $17) 29... Qd7 {[%emt 0:00:52]} 30. Kh2 {[%emt 0:02:53]} Bc2 {[%emt 0:03:06] Prevents f5. Hoping for ...Bxd1. A strong pair of Bishops.} 31. Qd2 {[%emt 0:08:42]} Qd8 $1 {[%emt 0:02:47]} 32. Ng2 {[%emt 0:00:06] Against Qh4+} Qf6 {[%emt 0:00:39]} (32... Rxe1 $17 33. Qxe1 Rc8) 33. Rxe8+ {[%emt 0:06:05]} (33. Bxd4 $1 $15 cxd4 34. Rxe8+ Rxe8 35. Rxa6) 33... Rxe8 $17 {[%emt 0:00:07]} 34. Ra4 {[%emt 0:00:51]} Bxd1 {[%emt 0:10:53]} 35. Bxd4 {[%emt 0:00:06]} cxd4 {[%emt 0:00:10]} 36. Qxd1 {[%emt 0:00:04]} d3 $1 {[%emt 0:00:07]} 37. Qxd3 {[%emt 0:08:17]} Qxb2 {[%emt 0:00:09]} 38. Rb4 $2 {[%emt 0:00:39][%mdl 8192]} (38. Rxa6 $17 Re2 39. Qf3) 38... Re2 $1 $19 {[%emt 0:00:40]} 39. Qg3 {[%emt 0:00:16]} Kg7 {[%emt 0:03:52]} (39... a5 $142 {( -> ...Rxg2+)} 40. Rb8+ Kg7) 40. f5 $2 {[%emt 0:01:04] [#]} (40. Rb7 Qc2 41. f5 Qxf5 42. Qc3+ Kh7 43. Rxb3) 40... a5 $2 {[%emt 0:00:40]} (40... h4 $1 $19 {[%cal Rh4g3]} 41. Rxh4 a5 42. fxg6 {[#]} Rxg2+ $1 {[%mdl 512]} 43. Qxg2 Qxg2+ 44. Kxg2 b2) 41. Rb7 $11 {[%emt 0:00:20] White threatens Qxg6+ and mate. The position is equal.} Qf6 {[%emt 0:02:54] aiming for ...a4.} 42. fxg6 {[%emt 0:00:50] Dancing on a razor blade.} Qxg6 {[%emt 0:01:54]} 43. Rxb3 {[%emt 0:00:04]} h4 {[%emt 0:02:32] Weighted Error Value: White=0.52/Black=0.39} 1/2-1/2

[Event "3rd VIZAG GM-Open 2022"]
[Site "Visakapatnam"]
[Date "2022.06.15"]
[Round "8.11"]
[White "Abdurakhmonov, Mukhammadali"]
[Black "Baghdasaryan, Vahe"]
[Result "1/2-1/2"]
[ECO "D16"]
[WhiteElo "2308"]
[BlackElo "2267"]
[Annotator "TA"]
[PlyCount "155"]
[EventDate "2022.06.13"]
[EventType "swiss"]
[EventCountry "IND"]
[SourceTitle "playchess.com"]
[Source "ChessBase"]
[SourceQuality "1"]
[TimeControl "5400+30"]

{[%evp 12,155,14,16,27,16,13,11,19,0,1,-15,-17,-10,0,3,29,22,25,30,25,23,10,10,31,17,18,14,32,15,16,6,0,0,0,0,81,0,0,-106,-75,-78,-33,-22,-23,-52,-54,-65,-53,-83,-44,-47,-50,-118,-112,-108,-104,-242,-250,-243,-104,-301,-274,-274,-264,-359,-381,-483,-470,-456,-378,-635,-610,-577,-437,-670,-236,-478,-55,-55,-55,-55,-39,-39,-39,-39,-25,-26,-27,-39,-30,-39,-18,-23,-8,-37,-37,-37,-37,-37,-37,-37,-32,-37,-37,-37,-37,-37,-37,-37,-37,-37,-37,-50,-37,-37,-33,-50,-37,-37,0,-50,-39,-39,-25,-25,-25,-25,-26,-26,-10,-68,-31,-31,-35,-36,-24,-24,-24,-24,-9,-9,-8,-8,0,-8]} 1. d4 {[%emt 0:00:12]} d5 {[%emt 0:13:57]} 2. c4 {[%emt 0:00:08]} c6 {[%emt 0:00:03]} 3. Nc3 {[%emt 0:03:42]} Nf6 {[%emt 0:06:15]} 4. Nf3 {[%emt 0:00:30]} dxc4 {[%emt 0:01:15]} 5. a4 {[%emt 0:00:11]} e6 {[%emt 0:02:44]} 6. e3 {[%emt 0:01:32]} c5 {[%emt 0:00:06]} 7. Bxc4 {[%emt 0:00:26]} cxd4 {[%emt 0:00:09] Nowadays more popular than 7...Nc6. D16: Slav Defence: 5 a4: Lines with 5...Bg4 and 5...Na6.} 8. exd4 {[%emt 0:00:19]} Be7 {[%emt 0:00:05]} 9. O-O {[%emt 0:00:15]} O-O {[%emt 0:00:04]} 10. Ne5 {[%emt 0:01:53]} Nc6 {[%emt 0:01:34]} 11. Nxc6 {[%emt 0:08:49]} bxc6 {[%emt 0:03:40]} 12. a5 {[%emt 0:00:06] [#]} a6 $146 {[%emt 1:06:38]} ({Predecessor:} 12... Rb8 13. a6 Qc7 14. Qe2 Rd8 15. Rd1 h6 16. h3 Nd5 17. Ne4 Rb4 18. b3 f5 {½-½ (56) Najer,E (2669)-Braun,A (2558) Austria 2009}) 13. Be3 {[%emt 0:21:25]} Rb8 {[%emt 0:00:00]} 14. Qe2 {[%emt 0:06:33]} Bb4 {[%emt 0:00:00]} 15. Bf4 {[%emt 0:02:44]} Ra8 {[%emt 0:00:00]} 16. Ra4 {[%emt 0:00:59]} Bxa5 {[%emt 0:00:00]} (16... Qxd4 $2 17. Be5 Bxc3 18. Bxd4 Bxd4 19. Bxe6 $1 $18 {[%mdl 512]}) 17. Bg5 {[%emt 0:01:03]} Bxc3 {[%emt 0:00:00]} 18. bxc3 {[%emt 0:00:05]} h6 {[%emt 0:00:00]} 19. Bh4 {[%emt 0:04:20][%mdl 1024] White has compensation.} a5 {[%emt 0:00:00]} 20. Bd3 {[%emt 0:01:57]} Bd7 {[%emt 0:00:00][%cal Oc6c5]} 21. Rc4 {[%emt 0:00:06]} a4 {[%emt 0:00:00]} 22. Ra1 {[%emt 0:00:40]} a3 {[%emt 0:00:00]} 23. Rc5 {[%emt 0:03:34]} Qe7 {[%emt 0:00:00]} (23... Re8 $11) 24. Qe5 {[%emt 0:03:36] White is more active.} (24. Rh5 $16 {aiming for Qf3.} Rfb8 25. Rxh6 gxh6 26. Qe5) 24... Ra7 $11 {[%emt 0:00:00]} 25. g4 {[%emt 0:12:07]} (25. Ra5 $11 {keeps the balance.} Rfa8 26. Rxa7 Rxa7 27. h3) 25... Rfa8 $17 {[%emt 0:00:00]} 26. g5 {[%emt 0:05:29]} Ne8 {[%emt 0:00:00]} (26... hxg5 27. Bxg5 Be8 28. h4 $11) (26... Nd5 $5 {[%cal Rh6g5]} 27. gxh6 Qf8 $15) 27. Qg3 {[%emt 0:03:52] Hoping for gxh6.} Qd6 {[%emt 0:00:00] And now ...Qxg3+ would win.} 28. Qf3 {[%emt 0:08:27]} hxg5 {[%emt 0:00:00]} 29. Rxg5 {[%emt 0:00:25]} Ra5 {[%emt 0:00:00]} 30. Bh7+ {[%emt 0:05:28] [#]} Kf8 $1 {[%emt 0:00:00]} 31. Bg6 {[%emt 0:00:08][%csl Gg6][%cal Rf3f7]} f6 {[%emt 0:00:00]} 32. Rh5 {[%emt 0:00:04]} (32. Rxa5 $15 Rxa5 33. Bg3) 32... Rxh5 {[%emt 0:00:00]} 33. Qxh5 {[%emt 0:00:05] [#]} Ke7 $1 {[%emt 0:00:00]} 34. Bg3 {[%emt 0:03:32]} (34. Qg4 $17 {was necessary.}) 34... Qd5 $19 {[%emt 0:00:00]} 35. Qh7 {[%emt 0:00:22]} Qg5 {[%emt 0:00:00]} (35... Qc4 $19 {is more deadly.} 36. Bxe8 Bxe8 37. Qxg7+ Bf7) 36. f4 $2 {[%emt 0:01:48]} (36. h4 $17 Qh6 37. Qxh6 gxh6 38. Bf4) 36... Qa5 {[%emt 0:00:18]} 37. Be1 {[%emt 0:00:57]} a2 {[%emt 0:00:52]} 38. Qh4 {[%emt 0:00:43]} Qd5 {[%emt 0:01:34]} 39. Qh5 {[%emt 0:00:27]} f5 {[%emt 0:08:14]} ({But not} 39... Qxh5 $2 40. Bxh5 Nd6 41. Kf2 $19) 40. Qe2 {[%emt 0:00:57]} c5 {[%emt 0:01:05]} 41. Bh4+ $2 {[%emt 0:00:14]} (41. Bxe8 Kxe8 42. Qg2) 41... Nf6 {[%emt 0:00:25] Threatens to win with ...Bc6.} 42. Qe5 {[%emt 0:00:27]} cxd4 {[%emt 0:01:10]} 43. cxd4 {[%emt 0:00:01]} (43. Bxf6+ $142 gxf6 44. Qxd5 exd5 45. cxd4) 43... Ra4 $2 {[%emt 0:00:44]} (43... Bc6 {[%csl Gc6][%cal Rd5g2]} 44. Qc7+ Qd7) 44. Bxf5 $2 {[%emt 0:01:12]} (44. Bxf6+ gxf6 45. Qxd5 exd5 46. h4) 44... Qxd4+ $2 {[%emt 0:00:50]} ({Not} 44... Qxe5 $2 45. dxe5 exf5 46. exf6+ gxf6 47. Be1 $19) ({Better is} 44... Bc6 $19 {[%csl Gc6][%cal Rd5g2]} 45. Qxd5 Bxd5) 45. Qxd4 $15 {[%emt 0:00:02]} Rxd4 {[%emt 0:00:04]} 46. Bc2 {[%emt 0:00:39]} Rxf4 {[%emt 0:00:43]} 47. Bg3 {[%emt 0:00:06]} Rg4 {[%emt 0:00:49]} 48. Rxa2 {[%emt 0:00:06]} Ne4 {[%emt 0:00:17]} 49. Bxe4 {[%emt 0:00:45]} Rxe4 $11 {[%emt 0:00:05][%mdl 4096] Endgame KRB-KRB} 50. Kf2 {[%emt 0:00:13]} Bc6 {[%emt 0:00:33]} 51. Re2 {[%emt 0:00:19]} Rc4 {[%emt 0:00:39]} 52. Be5 {[%emt 0:00:13]} g5 {[%emt 0:01:38]} 53. Ra2 {[%emt 0:00:14]} Kf7 {[%emt 0:00:00]} 54. Re2 {[%emt 0:01:15]} Kg6 {[%emt 0:00:00]} 55. Bg3 {[%emt 0:00:06]} Be4 {[%emt 0:00:00]} 56. Ke3 {[%emt 0:00:58]} Bd5 {[%emt 0:00:00]} 57. Kf2 {[%emt 0:00:43]} Kf5 {[%emt 0:00:00]} 58. Re5+ {[%emt 0:00:03]} Kf6 {[%emt 0:00:00]} 59. Re2 {[%emt 0:00:07]} Be4 {[%emt 0:00:14]} 60. Ra2 {[%emt 0:00:16]} Kf5 {[%emt 0:00:41]} 61. Ra5+ {[%emt 0:00:50]} Bd5 {[%emt 0:00:06]} 62. Rb5 {[%emt 0:00:17]} Ra4 {[%emt 0:00:24]} 63. Ke3 {[%emt 0:01:10]} Ra3+ {[%emt 0:00:17]} 64. Kf2 {[%emt 0:00:36]} Rd3 {[%emt 0:02:36]} 65. Ke2 {[%emt 0:00:32]} Ra3 {[%emt 0:00:29]} 66. Kf2 {[%emt 0:00:02]} Kg4 {[%emt 0:00:35]} 67. Rb4+ {[%emt 0:01:03]} Kh3 {[%emt 0:00:05]} 68. Be5 {[%emt 0:00:29]} Rf3+ {[%emt 0:00:05]} 69. Ke2 {[%emt 0:00:08]} Rf5 {[%emt 0:00:09]} 70. Bg3 {[%emt 0:00:15]} e5 {[%emt 0:00:11][%cal Be6e5,Be5e4][%mdl 32]} 71. Rb2 {[%emt 0:01:16]} (71. Kd2 $11) 71... e4 {[%emt 0:00:17]} 72. Rd2 {[%emt 0:00:39]} Bc6 {[%emt 0:00:49]} 73. Rd6 {[%emt 0:00:45]} Bb5+ {[%emt 0:00:06]} 74. Ke3 {[%emt 0:00:15]} Bd3 {[%emt 0:00:04]} 75. Rh6+ {[%emt 0:01:07]} Kg2 {[%emt 0:00:08]} 76. Rg6 {[%emt 0:00:12] The position is equal.} Rf3+ {[%emt 0:00:28]} 77. Kd4 {[%emt 0:00:10]} Rf5 {[%emt 0:01:15]} 78. Bh4 {[%emt 0:01:06] Black had all chances to win.  Weighted Error Value: White=0.34/Black=0.29 (precise)} 1/2-1/2

[Event "3rd VIZAG GM-Open 2022"]
[Site "Visakapatnam"]
[Date "2022.06.15"]
[Round "8.12"]
[White "Nikitenko, Mihail"]
[Black "Ziatdinov, Raset"]
[Result "1-0"]
[ECO "C27"]
[WhiteElo "2479"]
[BlackElo "2224"]
[Annotator "TA"]
[PlyCount "65"]
[EventDate "2022.06.13"]
[EventType "swiss"]
[EventCountry "IND"]
[SourceTitle "playchess.com"]
[Source "ChessBase"]
[SourceQuality "1"]
[TimeControl "5400+30"]

{[%evp 9,65,-13,0,-7,0,-16,-18,-18,-20,-28,-24,-33,-6,-36,-26,-28,-24,-31,0,-32,0,-10,-4,-14,-15,-15,0,0,9,20,20,24,24,10,22,13,26,0,0,-42,0,0,0,0,-5,0,204,204,206,189,610,583,699,705,694,696,1108,987]} 1. e4 {[%emt 0:00:06]} e5 {[%emt 0:00:05]} 2. Bc4 {[%emt 0:00:05]} Nf6 {[%emt 0:00:45]} 3. d3 {[%emt 0:00:04]} Bc5 {[%emt 0:00:40]} 4. Nc3 {[%emt 0:00:14]} d6 {[%emt 0:00:49]} 5. a3 {[%emt 0:01:17]} Be6 {[%emt 0:00:54]} 6. h3 {[%emt 0:02:26] C27: Vienna Game: 2...Nf6 3 Bc4 Nxe4.} O-O {[%emt 0:04:50] [#]} 7. Nge2 $146 {[%emt 0:00:04]} ({Predecessor:} 7. Bb3 Nc6 8. Bg5 h6 9. Bh4 g5 10. Bg3 Ne7 11. Qf3 Nc6 12. Qd1 Nd4 13. Nge2 Nxb3 14. cxb3 {0-1 (38) Aman,R (1434)-Humbek,O (1648) Lohmar 2000}) 7... c6 {[%emt 0:00:22]} 8. Bg5 {[%emt 0:05:35][%cal Bc1g5,Bg5h4,Bh4g3,Bg3h2][%mdl 32] The position is equal.} Nbd7 {[%emt 0:15:58]} 9. O-O {[%emt 0:01:52]} h6 {[%emt 0:00:28]} 10. Bh4 {[%emt 0:00:30]} b5 {[%emt 0:00:27]} 11. Ba2 {[%emt 0:01:48]} Bxa2 {[%emt 0:01:39]} 12. Rxa2 {[%emt 0:00:03]} a5 {[%emt 0:06:54] Inhibits b4.} 13. Kh1 {[%emt 0:08:18]} b4 {[%emt 0:04:14]} 14. Nb1 {[%emt 0:01:06]} g5 {[%emt 0:03:23]} 15. Bg3 {[%emt 0:00:04]} Qe7 {[%emt 0:02:43]} 16. Bh2 {[%emt 0:00:17]} Qe6 {[%emt 0:02:16]} 17. Ra1 {[%emt 0:00:15]} d5 {[%emt 0:01:24]} 18. Ng3 {[%emt 0:01:14]} dxe4 {[%emt 0:01:53]} 19. dxe4 {[%emt 0:00:04]} Nb6 {[%emt 0:04:34]} 20. Nd2 {[%emt 0:04:05]} bxa3 {[%emt 0:07:45]} 21. bxa3 {[%emt 0:00:12]} Rfd8 {[%emt 0:00:23]} 22. Qe2 {[%emt 0:00:21] Inhibits Nc4.} Na4 {[%emt 0:02:02]} 23. Nf3 {[%emt 0:02:00]} (23. Nb3 $5 {[%cal Rb3c5]}) 23... Kh7 {[%emt 0:02:02]} (23... Nc3 $5 24. Qe1 Nb5 $11) 24. c4 {[%emt 0:03:18]} Rab8 {[%emt 0:03:10] Threatens to win with ...g4.} 25. Qc2 $1 {[%emt 0:00:21]} Nb2 {[%emt 0:04:41]} 26. Nxe5 {[%emt 0:07:28]} Qxe5 {[%emt 0:01:50]} 27. Nh5 $1 {[%emt 0:00:22]} Qxh2+ {[%emt 0:00:14] [#]} (27... Qd4 $11 28. e5+ Qd3 29. Qxd3+ Nxd3 30. Nxf6+ Kg6) 28. Kxh2 $18 {[%emt 0:00:03]} Nxh5 {[%emt 0:00:11]} 29. Rfb1 $36 {[%emt 0:00:03][%mdl 2048] White is on the roll.} Nd3 {[%emt 0:05:32]} (29... Bd4) 30. Rxb8 {[%emt 0:00:12] White is clearly winning.} Bd6+ {[%emt 0:00:52]} 31. g3 {[%emt 0:00:40]} Bxb8 {[%emt 0:01:44]} 32. Rd1 {[%emt 0:00:04]} Nxf2 {[%emt 0:02:16]} 33. e5+ {[%emt 0:00:34] Weighted Error Value: White=0.07 (flawless) /Black=0.36} 1-0

[Event "3rd VIZAG GM-Open 2022"]
[Site "Visakapatnam"]
[Date "2022.06.15"]
[Round "8.13"]
[White "Saravana, Krishnan P."]
[Black "Azaladze, Shota"]
[Result "1/2-1/2"]
[ECO "B72"]
[WhiteElo "2269"]
[BlackElo "2420"]
[Annotator "TA"]
[PlyCount "104"]
[EventDate "2022.06.13"]
[EventType "swiss"]
[EventCountry "IND"]
[SourceTitle "playchess.com"]
[Source "ChessBase"]
[SourceQuality "1"]
[TimeControl "5400+30"]

{[%evp 19,104,13,10,7,26,0,0,0,0,8,6,-11,-15,-8,-16,-32,-18,-25,50,55,82,94,95,92,135,135,136,136,136,136,137,136,136,136,136,122,143,113,158,131,206,144,144,143,186,92,92,92,92,0,158,158,158,158,158,158,158,158,158,158,158,158,158,158,158,158,158,158,158,158,158,107,106,0,0,0,428,0,0,0,425,371,547,0,0,0,535]} 1. e4 {[%emt 1:31:00]} c5 {[%emt 1:31:00]} 2. Nc3 {[%emt 0:00:30]} Nc6 {[%emt 0:00:30]} 3. Nf3 {[%emt 0:00:30]} g6 {[%emt 0:00:30]} 4. d4 {[%emt 0:00:30]} cxd4 {[%emt 0:00:30]} 5. Nxd4 {[%emt 0:00:30]} Bg7 {[%emt 0:00:30]} 6. Be3 {[%emt 0:00:30]} Nf6 {[%emt 0:00:30]} 7. Bc4 {[%emt 0:00:30]} O-O {[%emt 0:00:30]} 8. Bb3 {[%emt 0:00:30]} d6 {[%emt 0:00:30]} 9. h3 {[%emt 0:00:30]} Bd7 {[%emt 0:00:30]} 10. O-O {[%emt 0:00:30]} Na5 {[%emt 0:00:30]} 11. Qd3 {[%emt 0:00:30] B72: Sicilian Dragon: 6 Be3, lines with h3+Bc4 and sidelines.} a6 {[%emt 0:00:30]} 12. f4 {[%emt 0:00:30]} Qc7 {[%emt 0:00:30]} 13. Rae1 {[%emt 0:00:30]} Nxb3 {[%emt 0:00:30] [#]} 14. cxb3 $146 {[%emt 0:00:30]} ({Predecessor:} 14. Nxb3 Be6 15. Nd2 Rac8 16. Bd4 Bc4 17. Nxc4 Qxc4 18. Qd1 b5 19. Re2 Rfe8 20. b3 {0-1 (40) Fleger,H-Wahl Germany West 1985}) 14... b5 {[%emt 0:00:30]} 15. Rc1 {[%emt 0:00:30]} Qb7 {[%emt 0:00:30]} 16. b4 {[%emt 0:00:30]} Rac8 {[%emt 0:00:30]} 17. Rfe1 {[%emt 0:00:30]} Rc4 {[%emt 0:00:30]} 18. a3 {[%emt 0:00:30]} Rfc8 {[%emt 0:00:30]} (18... Nh5 $11) 19. Nb3 $1 $14 {[%emt 0:00:30]} Rxc3 {[%emt 0:00:30]} 20. Rxc3 {[%emt 0:00:30]} Rxc3 21. bxc3 {[%emt 0:00:30]} Qxe4 {[%emt 0:01:00]} 22. Qxe4 {[%emt 0:00:30]} Nxe4 {[%emt 0:00:30]} 23. Bd4 {[%emt 0:00:30]} f5 {[%emt 0:00:30]} 24. Bxg7 {[%emt 0:00:30]} Kxg7 $16 {[%emt 0:00:30][%mdl 4096] Endgame [#] KRN-KBN} 25. Nd2 $1 {[%emt 0:00:30][%mdl 512]} Bc6 {[%emt 0:00:30]} 26. Nxe4 {[%emt 0:00:30]} Bxe4 {[%emt 0:00:30] KR-KB} 27. g3 {[%emt 0:00:30]} Kf6 {[%emt 0:00:30]} 28. Rd1 {[%emt 0:00:30]} g5 {[%emt 0:00:30]} 29. Kf2 {[%emt 0:00:30]} h5 {[%emt 0:00:30]} (29... Bc2 $16 30. Rd2 Bb3) 30. h4 {[%emt 0:00:30]} g4 {[%emt 0:00:30]} 31. Ke3 {[%emt 0:00:30]} Bc2 {[%emt 0:00:30]} 32. Rd4 {[%emt 0:00:30]} (32. Rc1 $1 $18 {[%cal Rc1c2] and White stays clearly on top.} Bb3 33. Rg1) 32... Bb3 {[%emt 0:00:30]} 33. Kd2 {[%emt 0:00:30][%cal Oa3a4]} Ke6 {[%emt 0:00:30]} 34. Ke3 {[%emt 0:00:30]} (34. Ke2 $16) 34... d5 $2 {[%emt 0:00:30]} (34... Kf6 $1 $11) 35. Rd2 {[%emt 0:00:30]} Kd6 {[%emt 0:00:30]} 36. Kd4 {[%emt 0:00:30]} e6 {[%emt 0:00:30]} 37. Rb2 {[%emt 0:00:30]} Ba4 {[%emt 0:00:30]} 38. Kd3 {[%emt 0:00:30]} Kc6 {[%emt 0:00:30]} 39. Ke3 {[%emt 0:00:30]} Kc7 {[%emt 0:00:30]} 40. Rb1 {[%emt 0:00:30]} Kd6 {[%emt 0:00:30]} 41. Re1 {[%emt 0:00:30]} Kd7 {[%emt 0:00:30]} 42. Re2 {[%emt 0:00:30]} Kc6 {[%emt 0:00:30]} 43. Kd4 {[%emt 0:00:30]} Kd6 {[%emt 0:00:30]} 44. Rb2 {[%emt 0:00:30]} Bd1 {[%emt 0:00:30]} 45. a4 {[%emt 0:00:30]} (45. Rb1 $142 Bc2 46. Rb2) 45... bxa4 {[%emt 0:00:30] [#]} 46. Ra2 {[%emt 0:00:30]} (46. b5 $1 $16 {[%cal Rb5a6]} axb5 47. Rxb5) 46... Bb3 $11 {[%emt 0:00:30]} 47. Ra1 {[%emt 0:00:30]} Kc6 $2 {[%emt 0:00:30][%mdl 8192]} (47... Bc2 $11 {and Black has nothing to worry.}) 48. Ra3 $2 {[%emt 0:00:30]} (48. Ke5 $18 {And now Kf6 would win.} Kd7 49. Kf6) 48... Kb5 $2 {[%emt 0:00:30][%mdl 8192]} (48... Kd6 $11) 49. Ra1 $18 {[%emt 0:00:30]} Kc6 {[%emt 0:00:30]} 50. Ke5 {[%emt 0:00:30]} Kb5 {[%emt 0:00:30] [#]} (50... Kc7 {was worth a try.} 51. Kf6 (51. Kxe6 $2 d4+ 52. Kxf5 d3 $19) 51... Kd6) 51. Kd4 $2 {[%emt 0:00:30]} ({White must play} 51. Kf6 $1 $18) 51... Kc6 $11 {[%emt 0:00:30]} 52. Ke5 $2 {[%emt 0:00:30][%mdl 8192]} (52. Kd3 $11) 52... Kb5 {[%emt 0:00:30][%mdl 32768] Weighted Error Value: White=0.32/Black=0.38. An unexpected result.} 1/2-1/2